bitfinex/quotes_SOLUSD_20250507
["timestamp","ask_amount","ask_price","bid_price","bid_amount"]
[1746644483819,0.1474436,146.81,146.8,31.80863066]
[1746644484123,0.1474436,146.81,146.8,24.99664156]
[1746644484335,0.1474436,146.81,146.8,50.60044109]
[1746644485049,0.1474436,146.81,146.8,133.10044109]
[1746644485637,0.1474436,146.81,146.8,24.99664156]
[1746644486149,6.9589687,146.81,146.79,24.99664156]
[1746644486325,6.9589687,146.81,146.8,24.99664156]
[1746644486524,6.9589687,146.81,146.76,18.79181043]
[1746644486843,6.9589687,146.81,146.78,24.99664156]
[1746644487023,31.95561026,146.81,146.77,24.99664156]
[1746644487348,24.99664156,146.8,146.76,24.99664156]
[1746644487649,55.59972301,146.81,146.77,24.99664156]
[1746644487857,6.9589687,146.81,146.78,24.99664156]
[1746644488029,6.9589687,146.81,146.8,24.99664156]
[1746644488951,6.9589687,146.81,146.79,24.99664156]
[1746644489857,31.95561026,146.81,146.73,26.0]
[1746644490151,24.99664156,146.8,146.73,26.0]
[1746644490353,24.99664156,146.8,146.73,32.81491568]
[1746644490655,24.99664156,146.78,146.74,24.99664156]
[1746644490821,23.98778145,146.81,146.77,24.99664156]
[1746644491027,48.98442301,146.81,146.77,24.99664156]
[1746644491254,24.99664156,146.79,146.75,24.99664156]
[1746644492157,24.99664156,146.78,146.74,24.99664156]
[1746644492329,24.99664156,146.79,146.75,24.99664156]
[1746644492955,23.98778145,146.81,146.75,24.99664156]
[1746644493155,24.99664156,146.79,146.75,24.99664156]
[1746644493662,24.99664156,146.77,146.71,6.81611074]
[1746644493851,24.99664156,146.75,146.68,82.5]
[1746644494053,24.99664156,146.71,146.63,91.9476334]
[1746644494230,24.99664156,146.71,146.66,24.99664156]
[1746644494434,24.99664156,146.7,146.66,24.99664156]
[1746644494655,24.99664156,146.7,146.65,24.99664156]
[1746644494854,26.0,146.72,146.66,24.99664156]
[1746644495058,24.99664156,146.71,146.67,24.99664156]
[1746644495259,26.0,146.72,146.68,24.99664156]
[1746644495554,24.99664156,146.72,146.68,24.99664156]
[1746644495740,31.81280951,146.71,146.66,24.99664156]
[1746644495934,24.99664156,146.7,146.66,24.99664156]
[1746644496342,24.99664156,146.7,146.62,51.46962823]
[1746644496653,24.99664156,146.7,146.65,24.99664156]
[1746644496961,24.99664156,146.7,146.66,24.99664156]
[1746644497156,23.85658782,146.71,146.66,24.99664156]
[1746644497344,6.81616795,146.71,146.68,24.99664156]
[1746644498151,0.14253414,146.69,146.68,24.99664156]
[1746644498364,0.14253414,146.69,146.66,24.99664156]
[1746644498537,25.1391757,146.69,146.62,51.46985636]
[1746644498955,0.14253414,146.69,146.66,24.99664156]
[1746644499131,0.14253414,146.69,146.67,24.99664156]
[1746644500060,6.95978946,146.69,146.66,24.99664156]
[1746644500258,0.14253414,146.69,146.68,24.99664156]
[1746644502571,0.14253414,146.69,146.68,24.99664156]
[1746644503249,31.95627297,146.69,146.64,24.99664156]
[1746644503443,6.95963141,146.69,146.65,24.99664156]
[1746644504038,31.95627297,146.69,146.65,24.99664156]
[1746644504356,6.95963141,146.69,146.66,24.99664156]
[1746644504857,0.14253414,146.69,146.66,24.99664156]
[1746644505044,0.14253414,146.69,146.68,24.99664156]
[1746644505960,0.14253414,146.69,146.65,18.79181043]
[1746644506152,6.95963141,146.69,146.67,24.99664156]
[1746644507767,0.14253414,146.69,146.67,24.99664156]
[1746644508363,6.95967162,146.69,146.64,32.81926232]
[1746644508566,0.14253414,146.69,146.67,24.99664156]
[1746644509348,6.9596716,146.69,146.67,24.99664156]
[1746644509663,0.14253414,146.69,146.68,24.99664156]
[1746644510170,0.14253414,146.69,146.64,26.0]
[1746644510171,6.95963141,146.69,146.66,24.99664156]
[1746644510375,6.95963141,146.69,146.63,89.3198403]
[1746644510555,31.95627297,146.69,146.65,24.99664156]
[1746644510870,24.99664156,146.68,146.64,24.99664156]
[1746644511164,31.95627297,146.69,146.65,24.99664156]
[1746644511665,31.95627297,146.69,146.62,51.61197767]
[1746644511853,24.99664156,146.68,146.64,24.99664156]
[1746644512465,6.95963141,146.69,146.62,50.99664156]
[1746644512466,24.99664156,146.66,146.62,50.99664156]
[1746644512843,24.99664156,146.67,146.63,24.99664156]
[1746644513468,24.99664156,146.67,146.62,26.0]
[1746644513653,6.81849174,146.66,146.63,24.99664156]
[1746644515468,31.8151333,146.66,146.59,6.8215534]
[1746644515768,31.8151333,146.66,146.62,24.99664156]
[1746644516264,31.8151333,146.66,146.6,26.0]
[1746644516469,31.8151333,146.66,146.62,24.99664156]
[1746644517245,6.81849174,146.66,146.63,24.99664156]
[1746644517445,24.99664156,146.65,146.6,24.99664156]
[1746644517662,24.99664156,146.64,146.6,24.99664156]
[1746644517949,6.81988678,146.63,146.6,24.99664156]
[1746644518142,0.1338592,146.61,146.59,24.99664156]
[1746644518585,0.1338592,146.61,146.54,89.32405902]
[1746644518759,0.1338592,146.61,146.58,24.99664156]
[1746644519559,0.1338592,146.61,146.59,24.99664156]
[1746644519757,6.8212824,146.6,146.59,24.99664156]
[1746644521166,6.8212824,146.6,146.55,32.82355703]
[1746644521375,6.8212824,146.6,146.53,109.63639472]
[1746644521675,6.8212824,146.6,146.56,24.99664156]
[1746644521676,31.81792396,146.6,146.56,24.99664156]
[1746644522247,24.99664156,146.59,146.55,24.99664156]
[1746644522475,24.99664156,146.58,146.54,24.99664156]
[1746644522675,24.99664156,146.59,146.55,24.99664156]
[1746644522871,6.8212824,146.6,146.57,24.99664156]
[1746644523076,6.8212824,146.6,146.58,24.99664156]
[1746644523651,6.8212824,146.6,146.53,32.82444176]
[1746644523851,6.8212824,146.6,146.57,24.99664156]
[1746644524154,6.8212824,146.6,146.55,24.99664156]
[1746644524155,24.99664156,146.59,146.55,24.99664156]
[1746644524545,24.99664156,146.59,146.54,24.99664156]
[1746644524755,24.99664156,146.56,146.51,26.0]
[1746644525049,24.99664156,146.56,146.52,24.99664156]
[1746644525255,24.99664156,146.57,146.53,24.99664156]
[1746644525775,24.99664156,146.55,146.49,26.0]
[1746644525950,6.82454104,146.53,146.5,24.99664156]
[1746644526152,6.82454104,146.53,146.47,26.0]
[1746644526347,6.82454104,146.53,146.51,24.99664156]
[1746644526580,6.82454104,146.53,146.48,26.0]
[1746644526875,6.82454104,146.53,146.5,24.99664156]
[1746644527053,31.8211826,146.53,146.49,24.99664156]
[1746644527376,31.8211826,146.53,146.46,26.0]
[1746644527554,31.8211826,146.53,146.48,24.99664156]
[1746644527750,31.8211826,146.53,146.49,24.99664156]
[1746644527950,23.88100436,146.56,146.5,24.99664156]
[1746644528148,23.88100436,146.56,146.52,24.99664156]
[1746644528352,24.99664156,146.53,146.41,82.5]
[1746644528557,24.99664156,146.5,146.41,82.5]
[1746644528772,24.99664156,146.51,146.46,24.99664156]
[1746644529473,31.82258012,146.5,146.46,24.99664156]
[1746644529785,24.99664156,146.49,146.44,24.99664156]
[1746644529959,38.46568012,146.5,146.45,24.99664156]
[1746644530767,38.46568012,146.5,146.42,51.47930176]
[1746644530768,24.99664156,146.49,146.42,32.8296529]
[1746644530993,24.99664156,146.48,146.43,24.99664156]
[1746644531160,24.99664156,146.49,146.44,24.99664156]
[1746644531355,24.99664156,146.49,146.42,32.8295324]
[1746644531677,6.82687056,146.48,146.44,24.99664156]
[1746644531857,24.99664156,146.47,146.42,26.0]
[1746644532082,24.99664156,146.47,146.43,24.99664156]
[1746644532246,6.82687056,146.48,146.43,24.99664156]
[1746644532247,31.82351212,146.48,146.43,24.99664156]
[1746644532447,6.82687056,146.48,146.44,24.99664156]
[1746644532862,6.82687056,146.48,146.45,24.99664156]
[1746644533179,6.82687056,146.48,146.44,24.99664156]
[1746644534265,6.82687056,146.48,146.45,24.99664156]
[1746644536384,31.82351212,146.48,146.41,25.47958545]
[1746644536580,6.82687056,146.48,146.46,24.99664156]
[1746644536879,6.6431,146.5,146.46,24.99664156]
[1746644536880,6.82659378,146.49,146.46,24.99664156]
[1746644537057,31.82323534,146.49,146.45,24.99664156]
[1746644537780,6.82659378,146.49,146.46,24.99664156]
[1746644538197,0.14693238,146.47,146.46,24.99664156]
[1746644538680,0.14693238,146.47,146.42,6.82950341]
[1746644538856,0.14693238,146.47,146.44,24.99664156]
[1746644539599,0.14693238,146.47,146.45,24.99664156]
[1746644539882,6.9745558,146.47,146.45,24.99664156]
[1746644540885,6.9745558,146.47,146.44,24.99664156]
[1746644541482,6.9745558,146.47,146.42,6.82950341]
[1746644541690,6.9745558,146.47,146.44,24.99664156]
[1746644541863,0.14693238,146.47,146.45,24.99664156]
[1746644542064,0.14693238,146.47,146.46,24.99664156]
[1746644543861,0.14693238,146.47,146.46,31.82444437]
[1746644544371,0.14693238,146.47,146.46,52.1940548]
[1746644544686,0.13413234,146.49,146.48,44.79181043]
[1746644544858,0.12557584,146.5,146.49,18.79181043]
[1746644545064,0.12557584,146.5,146.49,68.78509355]
[1746644546283,0.12557584,146.5,146.49,50.61485652]
[1746644547894,0.12557584,146.5,146.49,24.99664156]
[1746644551773,6.9515144,146.5,146.48,24.99664156]
[1746644551980,6.9515144,146.5,146.47,24.99664156]
[1746644552187,6.9515144,146.5,146.46,24.99664156]
[1746644552491,6.9515144,146.5,146.47,24.99664156]
[1746644554184,24.99664156,146.49,146.45,50.99664156]
[1746644554376,31.94815596,146.5,146.46,24.99664156]
[1746644554696,31.94815596,146.5,146.45,26.0]
[1746644554697,6.9515144,146.5,146.47,24.99664156]
[1746644555894,6.9515144,146.5,146.48,24.99664156]
[1746644555895,0.12557584,146.5,146.48,24.99664156]
[1746644556196,0.12557584,146.5,146.49,24.99664156]
[1746644558293,7.09669261,146.5,146.47,24.99664156]
[1746644558798,6.97111677,146.5,146.47,24.99664156]
[1746644559189,31.96775833,146.5,146.45,26.0]
[1746644559406,24.99664156,146.49,146.42,27.13525715]
[1746644559701,24.99664156,146.49,146.45,24.99664156]
[1746644560200,49.03260474,146.5,146.46,24.99664156]
[1746644560704,49.03260474,146.5,146.45,24.99664156]
[1746644561007,24.99664156,146.49,146.45,24.99664156]
[1746644561913,6.82687056,146.48,146.45,24.99664156]
[1746644562278,6.82687056,146.48,146.42,53.13522386]
[1746644562586,6.82687056,146.48,146.45,24.99664156]
[1746644563295,31.82351212,146.48,146.44,24.99664156]
[1746644563599,6.82687056,146.48,146.45,24.99664156]
[1746644563792,24.99664156,146.46,146.4,26.0]
[1746644564002,24.99664156,146.44,146.4,50.99664156]
[1746644564189,31.82491059,146.45,146.4,50.99664156]
[1746644564389,31.82491059,146.45,146.41,24.99664156]
[1746644564997,31.82491059,146.45,146.4,50.99664156]
[1746644564998,24.99664156,146.44,146.4,50.99664156]
[1746644565197,23.89894161,146.45,146.4,50.99664156]
[1746644565381,24.99664156,146.43,146.39,24.99664156]
[1746644565994,6.82957641,146.43,146.4,24.99664156]
[1746644566197,31.82621797,146.43,146.37,8.37579868]
[1746644566502,31.82621797,146.43,146.39,24.99664156]
[1746644566903,24.99664156,146.42,146.38,24.99664156]
[1746644567403,6.82957641,146.43,146.38,24.99664156]
[1746644567605,24.99664156,146.41,146.36,26.0]
[1746644567804,24.99664156,146.41,146.36,50.99664156]
[1746644567976,6.83060109,146.4,146.37,24.99664156]
[1746644568481,31.82724265,146.4,146.36,24.99664156]
[1746644569086,24.99664156,146.38,146.34,24.99664156]
[1746644569297,24.99664156,146.39,146.34,24.99664156]
[1746644569816,6.83060109,146.4,146.37,24.99664156]
[1746644569989,39.36892368,146.41,146.37,24.99664156]
[1746644570402,12.84178212,146.41,146.33,18.79181043]
[1746644570602,6.82985492,146.42,146.39,24.99664156]
[1746644570788,6.82939267,146.43,146.4,24.99664156]
[1746644570989,24.96890286,146.44,146.41,24.99664156]
[1746644571307,49.96554442,146.44,146.39,24.99664156]
[1746644571488,49.96554442,146.44,146.4,24.99664156]
[1746644571909,6.82966807,146.42,146.39,24.99664156]
[1746644572422,31.82630963,146.42,146.38,24.99664156]
[1746644572590,6.82966807,146.42,146.37,24.99664156]
[1746644572788,24.99664156,146.41,146.37,24.99664156]
[1746644573108,6.82966807,146.42,146.39,24.99664156]
[1746644573307,31.82630963,146.42,146.38,24.99664156]
[1746644574689,48.90047982,146.42,146.37,24.99664156]
[1746644575004,24.99664156,146.41,146.37,24.99664156]
[1746644576022,6.83060109,146.4,146.38,24.99664156]
[1746644576194,6.83030355,146.41,146.39,24.99664156]
[1746644577036,6.83030355,146.41,146.38,24.99664156]
[1746644578320,0.12515941,146.39,146.37,24.99664156]
[1746644580123,6.95665315,146.39,146.36,24.99664156]
[1746644580504,6.95665315,146.39,146.33,32.83365028]
[1746644580701,31.95329471,146.39,146.35,24.99664156]
[1746644581634,49.03096394,146.39,146.35,24.99664156]
[1746644582008,49.03096394,146.39,146.33,26.0]
[1746644582208,24.99664156,146.37,146.33,24.99664156]
[1746644582423,24.99664156,146.38,146.34,24.99664156]
[1746644582933,30.66282238,146.39,146.35,24.99664156]
[1746644582934,38.58179471,146.39,146.35,24.99664156]
[1746644583306,24.99664156,146.38,146.34,24.99664156]
[1746644584006,6.83200109,146.37,146.34,24.99664156]
[1746644584512,6.8316393,146.38,146.35,24.99664156]
[1746644585037,6.95640724,146.39,146.36,24.99664156]
[1746644585215,0.12515941,146.39,146.38,24.99664156]
[1746644586140,0.12515941,146.39,146.38,31.82817592]
[1746644586312,0.12515941,146.39,146.38,24.99664156]
[1746644586719,0.12515941,146.39,146.37,24.99664156]
[1746644587126,0.12515941,146.39,146.38,24.99664156]
[1746644587330,6.95628508,146.39,146.34,91.08667629]
[1746644587511,0.12515941,146.39,146.38,24.99664156]
[1746644588238,6.9562271,146.39,146.38,24.99664156]
[1746644589337,0.12515941,146.39,146.38,24.99664156]
[1746644589921,0.12515941,146.39,146.38,50.61998635]
[1746644590712,0.12926244,146.4,146.38,50.61998635]
[1746644590713,0.12926244,146.4,146.39,44.79181043]
[1746644590958,0.12462186,146.41,146.4,26.58984156]
[1746644591311,0.12719673,146.42,146.4,70.37829355]
[1746644591549,0.12719673,146.42,146.41,43.78845199]
[1746644592544,0.12719673,146.42,146.41,50.61858654]
[1746644592917,0.12719673,146.42,146.37,31.97061139]
[1746644592918,6.9568648,146.42,146.37,31.97061139]
[1746644593136,31.95350636,146.42,146.36,1.525]
[1746644593337,24.99664156,146.39,146.35,24.99664156]
[1746644593647,24.99664156,146.4,146.35,24.99664156]
[1746644593845,24.99664156,146.4,146.34,26.0]
[1746644593846,6.9568648,146.42,146.36,24.99664156]
[1746644594030,6.9568648,146.42,146.39,24.99664156]
[1746644595018,0.12719673,146.42,146.39,24.99664156]
[1746644595230,0.12719673,146.42,146.41,24.99664156]
[1746644595427,0.12719673,146.42,146.39,6.83106011]
[1746644595631,0.12719673,146.42,146.41,24.99664156]
[1746644597428,0.12719673,146.42,146.38,6.83120044]
[1746644597738,0.12719673,146.42,146.41,24.99664156]
[1746644598832,6.82827514,146.45,146.41,24.99664156]
[1746644599147,6.82827514,146.45,146.43,24.99664156]
[1746644599453,18.12,146.46,146.44,24.99664156]
[1746644599817,18.12,146.46,146.45,24.99664156]
[1746644601033,6.82666111,146.49,146.45,31.82485404]
[1746644601230,6.82666111,146.49,146.47,24.99664156]
[1746644601848,18.12,146.51,146.48,24.99664156]
[1746644602033,18.12,146.51,146.49,24.99664156]
[1746644602756,18.12,146.51,146.5,24.99664156]
[1746644602933,6.82464044,146.53,146.5,24.99664156]
[1746644603545,12.85150424,146.54,146.51,24.99664156]
[1746644603749,6.0273,146.54,146.51,24.99664156]
[1746644603928,6.82376804,146.55,146.52,24.99664156]
[1746644604129,31.8204096,146.55,146.5,24.99664156]
[1746644604454,31.8204096,146.55,146.49,25.40654156]
[1746644604455,24.99664156,146.53,146.49,25.40654156]
[1746644604751,6.82454104,146.53,146.5,24.99664156]
[1746644605251,6.82454104,146.53,146.49,25.40654156]
[1746644605558,24.99664156,146.51,146.49,0.4099]
[1746644605735,24.99664156,146.5,146.49,0.4099]
[1746644605925,30.99714156,146.5,146.49,0.4099]
[1746644606829,37.82308012,146.5,146.49,0.4099]
[1746644607232,12.82643856,146.5,146.49,0.4099]
[1746644607435,37.82308012,146.5,146.49,0.4099]
[1746644608260,12.82643856,146.5,146.49,0.4099]
[1746644608926,6.82593856,146.5,146.49,0.4099]
[1746644609751,6.82500682,146.52,146.49,25.40654156]
[1746644609952,6.82500682,146.52,146.51,24.99664156]
[1746644610739,6.82500682,146.52,146.5,24.99664156]
[1746644611057,6.82500682,146.52,146.49,25.40654156]
[1746644611249,6.82500682,146.52,146.5,24.99664156]
[1746644611451,6.82500682,146.52,146.49,0.4099]
[1746644611647,23.88752388,146.52,146.49,0.4099]
[1746644611964,24.99664156,146.5,146.49,0.4099]
[1746644612862,31.8211826,146.53,146.49,25.40654156]
[1746644613537,24.99664156,146.52,146.49,0.4099]
[1746644614459,24.99664156,146.51,146.49,0.4099]
[1746644614959,6.82593856,146.5,146.49,0.4099]
[1746644615346,31.82258012,146.5,146.49,0.4099]
[1746644616679,6.82561166,146.51,146.49,0.4099]
[1746644617245,6.82516849,146.52,146.5,24.99664156]
[1746644617757,6.82516849,146.52,146.49,0.4099]
[1746644617758,6.82516849,146.52,146.49,25.40654156]
[1746644618564,31.82181005,146.52,146.49,0.4099]
[1746644618863,24.99664156,146.51,146.49,0.4099]
[1746644619062,31.82258012,146.5,146.49,0.4099]
[1746644620080,102.29799055,146.5,146.49,0.4099]
[1746644620255,26.0,146.47,146.39,24.99664156]
[1746644620461,26.0,146.47,146.33,68.12]
[1746644620462,24.99664156,146.42,146.38,24.99664156]
[1746644620653,24.99664156,146.41,146.36,26.0]
[1746644620854,6.2672,146.46,146.39,24.99664156]
[1746644621071,6.82920166,146.43,146.4,24.99664156]
[1746644621266,24.99664156,146.42,146.38,24.99664156]
[1746644621578,24.99664156,146.41,146.37,24.99664156]
[1746644621750,24.99664156,146.4,146.36,24.99664156]
[1746644621942,24.99664156,146.41,146.37,24.99664156]
[1746644622782,6.83060109,146.4,146.37,24.99664156]
[1746644624454,1.5521,146.44,146.35,6.83291909]
[1746644624455,1.5521,146.44,146.39,24.99664156]
[1746644624676,18.12,146.45,146.41,24.99664156]
[1746644624971,6.82889066,146.44,146.42,24.99664156]
[1746644625349,6.82889066,146.44,146.41,24.99664156]
[1746644626367,6.82836462,146.45,146.43,24.99664156]
[1746644626580,6.82836462,146.45,146.44,24.99664156]
[1746644626883,6.82836462,146.45,146.42,24.99664156]
[1746644628253,23.8990372,146.45,146.41,24.99664156]
[1746644628453,24.99664156,146.44,146.4,24.99664156]
[1746644629778,24.99664156,146.44,146.39,24.99664156]
[1746644629984,24.99664156,146.44,146.4,24.99664156]
[1746644630154,17.07067258,146.45,146.41,24.99664156]
[1746644630482,17.07067258,146.45,146.37,50.99664156]
[1746644630483,23.89894161,146.45,146.42,24.99664156]
[1746644630977,6.82826903,146.45,146.44,24.99664156]
[1746644631383,6.82733665,146.47,146.44,24.99664156]
[1746644631678,6.82733665,146.47,146.45,24.99664156]
[1746644631877,6.82733665,146.47,146.44,24.99664156]
[1746644632258,48.89231984,146.47,146.41,26.0]
[1746644632581,24.99664156,146.46,146.4,1.6361]
[1746644632789,23.89567828,146.47,146.44,24.99664156]
[1746644632957,48.89231984,146.47,146.43,24.99664156]
[1746644634286,48.89231984,146.47,146.42,24.99664156]
[1746644634778,24.99664156,146.45,146.41,24.99664156]
[1746644634966,23.89567828,146.47,146.4,24.99664156]
[1746644634967,24.99664156,146.44,146.4,24.99664156]
[1746644635375,24.99664156,146.45,146.41,24.99664156]
[1746644635879,24.99664156,146.45,146.38,6.83146309]
[1746644636183,24.99664156,146.45,146.41,24.99664156]
[1746644636683,48.89231984,146.47,146.43,24.99664156]
[1746644637168,23.89567828,146.47,146.44,24.99664156]
[1746644637479,24.99664156,146.46,146.42,24.99664156]
[1746644638359,24.99664156,146.44,146.4,24.99664156]
[1746644638567,24.99664156,146.43,146.37,26.0]
[1746644638963,6.82966807,146.42,146.39,24.99664156]
[1746644639162,6.82966807,146.42,146.36,1.5891]
[1746644639163,31.82630963,146.42,146.36,1.5891]
[1746644639372,6.82966807,146.42,146.39,24.99664156]
[1746644641688,6.82966807,146.42,146.36,1.5891]
[1746644641689,24.92930006,146.43,146.4,24.99664156]
[1746644641986,18.1,146.43,146.42,24.99664156]
[1746644642174,6.8276259,146.47,146.42,24.99664156]
[1746644642379,24.99664156,146.46,146.38,32.83142188]
[1746644642563,24.99664156,146.44,146.4,24.99664156]
[1746644642765,24.99664156,146.46,146.41,24.99664156]
[1746644642966,24.99664156,146.46,146.38,32.83142188]
[1746644642967,6.82826903,146.45,146.42,24.99664156]
[1746644643569,6.82795952,146.46,146.44,24.99664156]
[1746644643780,6.82795952,146.46,146.43,24.99664156]
[1746644643981,31.82460108,146.46,146.42,24.99664156]
[1746644644197,24.99664156,146.45,146.38,32.83141058]
[1746644644394,24.99664156,146.45,146.41,24.99664156]
[1746644644717,31.82460108,146.46,146.42,24.99664156]
[1746644644868,6.82795952,146.46,146.43,24.99664156]
[1746644645975,31.82460108,146.46,146.42,24.99664156]
[1746644648766,6.82795952,146.46,146.43,24.99664156]
[1746644649274,31.82460108,146.46,146.42,24.99664156]
[1746644649664,24.99664156,146.43,146.36,27.5891]
[1746644649892,24.99664156,146.44,146.4,24.99664156]
[1746644650096,48.89410811,146.46,146.42,24.99664156]
[1746644650267,23.89746655,146.46,146.42,24.99664156]
[1746644650463,6.82795952,146.46,146.43,24.99664156]
[1746644650663,6.82795952,146.46,146.45,24.99664156]
[1746644651176,6.82733665,146.47,146.44,24.99664156]
[1746644651780,18.1,146.48,146.46,24.99664156]
[1746644652088,18.1,146.48,146.47,24.99664156]
[1746644652277,18.1,146.53,146.47,24.99664156]
[1746644652592,24.92470753,146.53,146.5,24.99664156]
[1746644652798,24.99664156,146.52,146.47,24.99664156]
[1746644652964,24.99664156,146.52,146.48,24.99664156]
[1746644653169,24.92470753,146.53,146.49,24.99664156]
[1746644653579,24.99664156,146.52,146.48,24.99664156]
[1746644653994,24.99664156,146.51,146.47,24.99664156]
[1746644654682,24.99664156,146.52,146.47,24.99664156]
[1746644655087,24.99664156,146.52,146.48,24.99664156]
[1746644655679,48.88579587,146.51,146.43,32.82902189]
[1746644655883,24.99664156,146.5,146.46,24.99664156]
[1746644656076,24.99664156,146.49,146.44,24.99664156]
[1746644656274,24.99664156,146.49,146.45,24.99664156]
[1746644656683,24.99664156,146.5,146.45,24.99664156]
[1746644656894,24.99664156,146.49,146.42,27.5798]
[1746644657092,24.99664156,146.49,146.45,24.99664156]
[1746644657301,6.82687056,146.48,146.45,24.99664156]
[1746644657477,6.82687056,146.48,146.42,34.40919579]
[1746644657803,6.82687056,146.48,146.45,24.99664156]
[1746644658000,6.82687056,146.48,146.46,24.99664156]
[1746644658699,6.82640453,146.49,146.46,24.99664156]
[1746644658991,6.82640453,146.49,146.45,24.99664156]
[1746644659398,6.82640453,146.49,146.44,24.99664156]
[1746644659584,31.82304609,146.49,146.45,24.99664156]
[1746644659987,31.82304609,146.49,146.42,27.5798]
[1746644659988,48.88905742,146.49,146.42,27.5798]
[1746644660203,24.99664156,146.48,146.43,24.99664156]
[1746644660507,24.99664156,146.48,146.44,24.99664156]
[1746644660876,6.82733665,146.47,146.44,24.99664156]
[1746644662484,18.06,146.49,146.46,24.99664156]
[1746644662809,18.06,146.49,146.38,1.70086157]
[1746644662810,18.06,146.49,146.48,24.99664156]
[1746644662988,24.88640453,146.49,146.47,24.99664156]
[1746644663388,24.88640453,146.49,146.46,24.99664156]
[1746644663597,24.88640453,146.49,146.47,24.99664156]
[1746644663904,24.88640453,146.49,146.4,26.0]
[1746644663905,24.99664156,146.48,146.4,26.0]
[1746644664108,24.88640453,146.49,146.4,26.0]
[1746644664109,24.99664156,146.47,146.43,24.99664156]
[1746644664500,24.99664156,146.48,146.44,24.99664156]
[1746644664801,24.88640453,146.49,146.47,24.99664156]
[1746644665201,18.06,146.49,146.47,24.99664156]
[1746644665381,18.06,146.49,146.48,24.99664156]
[1746644666207,24.88640453,146.49,146.48,24.99664156]
[1746644666414,6.82640453,146.49,146.47,24.99664156]
[1746644666996,6.82547266,146.51,146.48,24.99664156]
[1746644669210,6.82547266,146.51,146.49,24.99664156]
[1746644669588,6.82547266,146.51,146.48,24.99664156]
[1746644672109,48.88579587,146.51,146.45,1.6315]
[1746644672316,48.88579587,146.51,146.47,24.99664156]
[1746644680217,23.88915431,146.51,146.47,24.99664156]
[1746644680397,48.88579587,146.51,146.47,24.99664156]
[1746644681019,48.88579587,146.51,146.46,24.99664156]
[1746644681401,48.88579587,146.51,146.47,24.99664156]
[1746644682104,23.88915431,146.51,146.48,24.99664156]
[1746644682303,6.82547266,146.51,146.48,24.99664156]
[1746644682596,6.82547266,146.51,146.47,24.99664156]
[1746644682797,6.82547266,146.51,146.48,24.99664156]
[1746644684029,48.88579587,146.51,146.47,24.99664156]
[1746644685226,58.01651762,146.51,146.42,1.6524]
[1746644685403,31.82397821,146.47,146.43,24.99664156]
[1746644685602,6.82733665,146.47,146.44,24.99664156]
[1746644686199,6.82733665,146.47,146.43,24.99664156]
[1746644686404,24.99664156,146.46,146.39,18.79181043]
[1746644686603,24.99664156,146.45,146.41,24.99664156]
[1746644687613,6.82873531,146.44,146.41,24.99664156]
[1746644688625,24.99664156,146.43,146.38,1.651]
[1746644688799,24.99664156,146.43,146.39,24.99664156]
[1746644689829,48.89721516,146.44,146.4,24.99664156]
[1746644690126,23.9005736,146.44,146.4,24.99664156]
[1746644690330,31.82537687,146.44,146.4,24.99664156]
[1746644691539,24.99664156,146.43,146.39,24.99664156]
[1746644691911,31.82537687,146.44,146.39,24.99664156]
[1746644692121,31.82537687,146.44,146.4,24.99664156]
[1746644692425,6.82873531,146.44,146.4,24.99664156]
[1746644692606,6.82873531,146.44,146.42,24.99664156]
[1746644692807,6.82780281,146.46,146.43,24.99664156]
[1746644693007,6.82780281,146.46,146.44,24.99664156]
[1746644693613,6.82780281,146.46,146.43,24.99664156]
[1746644694139,6.82780281,146.46,146.39,26.0]
[1746644694324,6.82780281,146.46,146.43,24.99664156]
[1746644695932,6.82780281,146.46,146.4,6.8303806]
[1746644696136,31.82444437,146.46,146.42,24.99664156]
[1746644696531,24.99664156,146.43,146.34,1.6581]
[1746644696839,24.99664156,146.41,146.37,24.99664156]
[1746644697138,24.99664156,146.42,146.37,24.99664156]
[1746644697337,6.83013455,146.41,146.35,26.0]
[1746644697641,6.83013455,146.41,146.37,24.99664156]
[1746644697642,31.82677611,146.41,146.37,24.99664156]
[1746644698318,6.83013455,146.41,146.37,24.99664156]
[1746644698525,6.83013455,146.41,146.38,24.99664156]
[1746644699557,6.83013455,146.41,146.37,24.99664156]
[1746644699847,6.83013455,146.41,146.39,24.99664156]
[1746644700145,6.82920166,146.43,146.4,24.99664156]
[1746644700347,6.82893101,146.44,146.42,24.99664156]
[1746644700817,6.82893101,146.44,146.41,24.99664156]
[1746644701013,6.82893101,146.44,146.4,24.99664156]
[1746644701314,24.99664156,146.41,146.35,26.0]
[1746644701538,31.82724265,146.4,146.36,24.99664156]
[1746644701741,6.83060109,146.4,146.37,24.99664156]
[1746644701926,24.87027023,146.41,146.38,24.99664156]
[1746644702415,24.99664156,146.4,146.36,24.99664156]
[1746644703422,6.83106769,146.39,146.36,24.99664156]
[1746644704127,24.99664156,146.38,146.34,24.99664156]
[1746644704552,6.83106769,146.39,146.36,24.99664156]
[1746644705024,31.82770925,146.39,146.34,24.99664156]
[1746644705229,31.82770925,146.39,146.35,24.99664156]